[Event "Titled Tuesday Blitz March 14 Late 2023"]
[White "Sanal, Vahap"]
[Black "Jaskolka, Tomasz"]
[WhiteFideId "6300545"]
[BlackFideId "1170791"]
[WhiteElo "2606"]
[BlackElo "2155"]
[Result "1-0"]
[Round "02"]
[TimeControl "180+1"]
[Date "2023.03.14"]
[WhiteClock "0:00:09"]
[BlackClock "0:00:06"]

1. e4 {[%clk 0:03:00]}  c5 {[%clk 0:02:57]} 2. Nc3 {[%clk 0:03:00]}  e6 {[%clk 0:02:57]} 3. g3 {[%clk 0:03:00]}  d5 {[%clk 0:02:36]} 4. Bg2 {[%clk 0:03:00]}  Nf6 {[%clk 0:02:35]} 5. d3 {[%clk 0:02:56]}  Nc6 {[%clk 0:02:34]} 6. exd5 {[%clk 0:02:51]}  exd5 {[%clk 0:02:34]} 7. Bg5 {[%clk 0:02:48]}  Be7 {[%clk 0:02:11]} 8. Nge2 {[%clk 0:02:45]}  d4 {[%clk 0:02:10]} 9. Bxf6 {[%clk 0:02:45]}  Bxf6 {[%clk 0:02:09]} 10. Ne4 {[%clk 0:02:45]}  Be7 {[%clk 0:02:08]} 11. O-O {[%clk 0:02:46]}  O-O {[%clk 0:02:06]} 12. Nf4 {[%clk 0:02:47]}  Bf5 {[%clk 0:02:00]} 13. Re1 {[%clk 0:02:37]}  Re8 {[%clk 0:01:59]} 14. Qd2 {[%clk 0:02:17]}  Qd7 {[%clk 0:01:57]} 15. Nd5 {[%clk 0:02:06]}  Bh3 {[%clk 0:01:23]} 16. Nxe7+ {[%clk 0:01:28]}  Rxe7 {[%clk 0:01:21]} 17. Nxc5 {[%clk 0:01:23]}  Qf5 {[%clk 0:01:09]} 18. Rxe7 {[%clk 0:01:15]}  Nxe7 {[%clk 0:01:09]} 19. Bxh3 {[%clk 0:01:07]}  Qxh3 {[%clk 0:00:58]} 20. Re1 {[%clk 0:01:07]}  Nd5 {[%clk 0:00:51]} 21. Qg5 {[%clk 0:01:02]}  Nf6 {[%clk 0:00:48]} 22. Nxb7 {[%clk 0:00:49]}  h6 {[%clk 0:00:46]} 23. Qh4 {[%clk 0:00:42]}  Qxh4 {[%clk 0:00:45]} 24. gxh4 {[%clk 0:00:42]}  Rb8 {[%clk 0:00:46]} 25. Re7 {[%clk 0:00:37]}  Kf8 {[%clk 0:00:36]} 26. Rc7 {[%clk 0:00:37]}  Nd5 {[%clk 0:00:18]} 27. Rd7 {[%clk 0:00:37]}  Nb4 {[%clk 0:00:14]} 28. Nd6 {[%clk 0:00:33]}  Nxc2 {[%clk 0:00:13]} 29. Rxf7+ {[%clk 0:00:33]}  Kg8 {[%clk 0:00:13]} 30. Rxa7 {[%clk 0:00:32]}  Rxb2 {[%clk 0:00:14]} 31. Nf5 {[%clk 0:00:25]}  Ne1 {[%clk 0:00:14]} 32. Rxg7+ {[%clk 0:00:24]}  Kf8 {[%clk 0:00:14]} 33. Rg6 {[%clk 0:00:16]}  Kf7 {[%clk 0:00:10]} 34. Rxh6 {[%clk 0:00:13]}  Nxd3 {[%clk 0:00:09]} 35. Nxd4 {[%clk 0:00:14]}  Nxf2 {[%clk 0:00:09]} 36. Ra6 {[%clk 0:00:09]}  Nh3+ {[%clk 0:00:09]} 37. Kf1 {[%clk 0:00:09]}  Rxh2 {[%clk 0:00:09]} 38. h5 {[%clk 0:00:09]}  Nf4 {[%clk 0:00:09]} 39. h6 {[%clk 0:00:09]}  Ng6 {[%clk 0:00:09]} 40. Nf5 {[%clk 0:00:08]}  Rh5 {[%clk 0:00:09]} 41. Nd6+ {[%clk 0:00:08]}  Kg8 {[%clk 0:00:05]} 42. Ra8+ {[%clk 0:00:07]}  Kh7 {[%clk 0:00:05]} 43. Ne4 {[%clk 0:00:08]}  Rf5+ {[%clk 0:00:05]} 44. Ke2 {[%clk 0:00:08]}  Kxh6 {[%clk 0:00:06]} 45. Ke3 {[%clk 0:00:08]}  Rb5 {[%clk 0:00:05]} 46. a4 {[%clk 0:00:08]}  Rb3+ {[%clk 0:00:05]} 47. Kd4 {[%clk 0:00:09]}  Ne7 {[%clk 0:00:05]} 48. a5 {[%clk 0:00:09]}  Nc6+ {[%clk 0:00:05]} 49. Kc5 {[%clk 0:00:06]}  Nxa5 {[%clk 0:00:06]} 50. Ra6+ {[%clk 0:00:05]}  Kg7 {[%clk 0:00:04]} 51. Rxa5 {[%clk 0:00:05]}  Re3 {[%clk 0:00:05]} 52. Kd5 {[%clk 0:00:06]}  Re1 {[%clk 0:00:05]} 53. Ke5 {[%clk 0:00:07]}  Kf7 {[%clk 0:00:05]} 54. Ra6 {[%clk 0:00:07]}  Re2 {[%clk 0:00:04]} 55. Kf5 {[%clk 0:00:07]}  Re1 {[%clk 0:00:04]} 56. Ra7+ {[%clk 0:00:07]}  Ke8 {[%clk 0:00:04]} 57. Nc5 {[%clk 0:00:06]}  Kd8 {[%clk 0:00:04]} 58. Nd3 {[%clk 0:00:05]}  Rf1+ {[%clk 0:00:04]} 59. Ke6 {[%clk 0:00:05]}  Rh1 {[%clk 0:00:04]} 60. Ne5 {[%clk 0:00:05]}  Rh6+ {[%clk 0:00:03]} 61. Kd5 {[%clk 0:00:06]}  Kc8 {[%clk 0:00:04]} 62. Rg7 {[%clk 0:00:06]}  Kb8 {[%clk 0:00:04]} 63. Nc4 {[%clk 0:00:07]}  Kc8 {[%clk 0:00:04]} 64. Nd6+ {[%clk 0:00:07]}  Kb8 {[%clk 0:00:04]} 65. Kc6 {[%clk 0:00:07]}  Rh1 {[%clk 0:00:05]} 66. Rg8+ {[%clk 0:00:07]}  Ka7 {[%clk 0:00:05]} 67. Nb5+ {[%clk 0:00:08]}  Ka6 {[%clk 0:00:06]} 68. Ra8# {[%clk 0:00:09]} 1-0


[Site "https://www.chess.com"]

[Event "Titled Tuesday Blitz March 14 Late 2023"]
[White "Sanchez Alvares, Kelvin Antonio"]
[Black "Ardila, Oscar Humberto"]
[WhiteFideId "3906680"]
[BlackFideId "4404742"]
[WhiteElo "2217"]
[BlackElo "1911"]
[Result "1-0"]
[Round "02"]
[TimeControl "180+1"]
[Date "2023.03.14"]
[WhiteClock "0:00:10"]
[BlackClock "0:00:03"]

1. e4 {[%clk 0:03:00]}  e5 {[%clk 0:02:59]} 2. Nf3 {[%clk 0:02:57]}  Nf6 {[%clk 0:03:00]} 3. Nxe5 {[%clk 0:02:55]}  d6 {[%clk 0:03:00]} 4. Nf3 {[%clk 0:02:55]}  Nxe4 {[%clk 0:03:00]} 5. Qe2 {[%clk 0:02:55]}  Qe7 {[%clk 0:02:59]} 6. d3 {[%clk 0:02:56]}  Nf6 {[%clk 0:02:59]} 7. Bg5 {[%clk 0:02:56]}  Qxe2+ {[%clk 0:02:58]} 8. Bxe2 {[%clk 0:02:57]}  Be7 {[%clk 0:02:59]} 9. Nc3 {[%clk 0:02:57]}  Nbd7 {[%clk 0:02:59]} 10. O-O-O {[%clk 0:02:58]}  h6 {[%clk 0:02:56]} 11. Bh4 {[%clk 0:02:57]}  O-O {[%clk 0:02:50]} 12. Rhe1 {[%clk 0:02:54]}  Re8 {[%clk 0:02:49]} 13. Nd4 {[%clk 0:02:43]}  c6 {[%clk 0:02:38]} 14. Bf3 {[%clk 0:02:39]}  Ne5 {[%clk 0:02:34]} 15. Be2 {[%clk 0:02:34]}  Bd7 {[%clk 0:02:10]} 16. Bg3 {[%clk 0:02:19]}  Bf8 {[%clk 0:02:03]} 17. h3 {[%clk 0:02:15]}  b5 {[%clk 0:02:01]} 18. f4 {[%clk 0:02:13]}  Ng6 {[%clk 0:01:59]} 19. Bf3 {[%clk 0:02:07]}  Rxe1 {[%clk 0:01:46]} 20. Rxe1 {[%clk 0:02:07]}  Rc8 {[%clk 0:01:46]} 21. f5 {[%clk 0:01:59]}  Ne5 {[%clk 0:01:37]} 22. Bxe5 {[%clk 0:01:58]}  dxe5 {[%clk 0:01:37]} 23. Rxe5 {[%clk 0:01:59]}  Bd6 {[%clk 0:01:37]} 24. Re1 {[%clk 0:01:51]}  Bf4+ {[%clk 0:01:36]} 25. Kd1 {[%clk 0:01:50]}  b4 {[%clk 0:01:28]} 26. Ne4 {[%clk 0:01:50]}  Nd5 {[%clk 0:01:21]} 27. g3 {[%clk 0:01:44]}  Be5 {[%clk 0:01:18]} 28. Nc5 {[%clk 0:01:11]}  Bxd4 {[%clk 0:01:17]} 29. Nxd7 {[%clk 0:01:11]}  Bxb2 {[%clk 0:01:16]} 30. Bxd5 {[%clk 0:01:11]}  cxd5 {[%clk 0:01:15]} 31. Re7 {[%clk 0:01:10]}  a5 {[%clk 0:00:43]} 32. Nb6 {[%clk 0:01:09]}  Rd8 {[%clk 0:00:42]} 33. Rd7 {[%clk 0:01:00]}  Rxd7 {[%clk 0:00:31]} 34. Nxd7 {[%clk 0:01:00]}  Bd4 {[%clk 0:00:32]} 35. Nb8 {[%clk 0:01:00]}  Bb6 {[%clk 0:00:27]} 36. Nc6 {[%clk 0:00:59]}  Kf8 {[%clk 0:00:26]} 37. Ke2 {[%clk 0:00:58]}  Ke8 {[%clk 0:00:26]} 38. Ne5 {[%clk 0:00:56]}  Bc7 {[%clk 0:00:25]} 39. d4 {[%clk 0:00:51]}  f6 {[%clk 0:00:25]} 40. Ng4 {[%clk 0:00:43]}  Bxg3 {[%clk 0:00:24]} 41. Ne3 {[%clk 0:00:43]}  Kd7 {[%clk 0:00:19]} 42. Nxd5 {[%clk 0:00:41]}  Kd6 {[%clk 0:00:20]} 43. Ne3 {[%clk 0:00:38]}  Bf4 {[%clk 0:00:20]} 44. Nc4+ {[%clk 0:00:37]}  Kd5 {[%clk 0:00:20]} 45. Kd3 {[%clk 0:00:37]}  Bc7 {[%clk 0:00:19]} 46. Ne3+ {[%clk 0:00:37]}  Kc6 {[%clk 0:00:19]} 47. Kc4 {[%clk 0:00:36]}  Bf4 {[%clk 0:00:19]} 48. Nd5 {[%clk 0:00:35]}  Bd6 {[%clk 0:00:13]} 49. Ne3 {[%clk 0:00:31]}  Bf4 {[%clk 0:00:12]} 50. Nd1 {[%clk 0:00:25]}  Bd2 {[%clk 0:00:09]} 51. Nb2 {[%clk 0:00:24]}  Kb6 {[%clk 0:00:06]} 52. d5 {[%clk 0:00:19]}  Kc7 {[%clk 0:00:04]} 53. Kb5 {[%clk 0:00:16]}  Kd6 {[%clk 0:00:03]} 54. Nc4+ {[%clk 0:00:16]}  Kxd5 {[%clk 0:00:03]} 55. Nxd2 {[%clk 0:00:17]}  Kd4 {[%clk 0:00:04]} 56. Kxa5 {[%clk 0:00:16]}  Kc3 {[%clk 0:00:04]} 57. Ne4+ {[%clk 0:00:15]}  Kd4 {[%clk 0:00:04]} 58. Kxb4 {[%clk 0:00:14]}  Kxe4 {[%clk 0:00:04]} 59. a4 {[%clk 0:00:15]}  Kxf5 {[%clk 0:00:05]} 60. a5 {[%clk 0:00:15]}  Kg5 {[%clk 0:00:05]} 61. a6 {[%clk 0:00:15]}  f5 {[%clk 0:00:06]} 62. a7 {[%clk 0:00:16]}  Kh4 {[%clk 0:00:07]} 63. a8=Q {[%clk 0:00:16]}  Kxh3 {[%clk 0:00:08]} 64. Qf3+ {[%clk 0:00:16]}  Kh4 {[%clk 0:00:08]} 65. Qf4+ {[%clk 0:00:17]}  Kh5 {[%clk 0:00:08]} 66. Qxf5+ {[%clk 0:00:17]}  g5 {[%clk 0:00:09]} 67. Kc4 {[%clk 0:00:16]}  Kh4 {[%clk 0:00:09]} 68. Kd3 {[%clk 0:00:16]}  g4 {[%clk 0:00:10]} 69. Ke2 {[%clk 0:00:17]}  h5 {[%clk 0:00:10]} 70. Kf2 {[%clk 0:00:11]}  g3+ {[%clk 0:00:07]} 71. Kg1 {[%clk 0:00:12]}  g2 {[%clk 0:00:05]} 72. Qf2+ {[%clk 0:00:11]}  Kh3 {[%clk 0:00:05]} 73. Qxg2+ {[%clk 0:00:11]}  Kh4 {[%clk 0:00:06]} 74. Qg7 {[%clk 0:00:10]}  Kh3 {[%clk 0:00:05]} 75. Kf2 {[%clk 0:00:10]}  h4 {[%clk 0:00:03]} 76. Qg2# {[%clk 0:00:10]} 1-0


[Site "https://www.chess.com"]

[Event "Titled Tuesday Blitz March 14 Late 2023"]
[White "Sarana, Alexey"]
[Black "Fiorito, Francisco"]
[WhiteFideId "24133795"]
[BlackFideId "180165"]
[WhiteElo "2714"]
[BlackElo "2341"]
[Result "1-0"]
[Round "02"]
[TimeControl "180+1"]
[Date "2023.03.14"]
[WhiteClock "0:01:16"]
[BlackClock "0:00:00"]

1. c4 {[%clk 0:02:59]}  c5 {[%clk 0:02:59]} 2. Nf3 {[%clk 0:02:58]}  g6 {[%clk 0:02:59]} 3. d4 {[%clk 0:02:58]}  cxd4 {[%clk 0:02:58]} 4. Nxd4 {[%clk 0:02:59]}  Nc6 {[%clk 0:02:56]} 5. e4 {[%clk 0:02:59]}  Nf6 {[%clk 0:02:56]} 6. Nc3 {[%clk 0:02:59]}  d6 {[%clk 0:02:56]} 7. Be2 {[%clk 0:02:59]}  Nxd4 {[%clk 0:02:56]} 8. Qxd4 {[%clk 0:03:00]}  Bg7 {[%clk 0:02:57]} 9. Be3 {[%clk 0:02:59]}  O-O {[%clk 0:02:58]} 10. Qd2 {[%clk 0:02:57]}  a5 {[%clk 0:02:58]} 11. O-O {[%clk 0:02:55]}  a4 {[%clk 0:02:58]} 12. Rac1 {[%clk 0:02:46]}  Qa5 {[%clk 0:02:58]} 13. f3 {[%clk 0:02:47]}  Be6 {[%clk 0:02:58]} 14. Rfd1 {[%clk 0:02:46]}  Rfc8 {[%clk 0:02:59]} 15. Nb5 {[%clk 0:02:43]}  Nd7 {[%clk 0:02:38]} 16. Bd4 {[%clk 0:02:40]}  Qxd2 {[%clk 0:02:31]} 17. Rxd2 {[%clk 0:02:41]}  Ne5 {[%clk 0:02:21]} 18. Rdc2 {[%clk 0:02:39]}  Nc6 {[%clk 0:02:21]} 19. Bxg7 {[%clk 0:02:38]}  Kxg7 {[%clk 0:02:21]} 20. a3 {[%clk 0:02:34]}  b6 {[%clk 0:02:16]} 21. Kf2 {[%clk 0:02:33]}  Na5 {[%clk 0:02:12]} 22. Nd4 {[%clk 0:02:32]}  Rc5 {[%clk 0:02:08]} 23. Rc3 {[%clk 0:02:29]}  Rac8 {[%clk 0:02:08]} 24. Nxe6+ {[%clk 0:02:28]}  fxe6 {[%clk 0:02:09]} 25. Ke3 {[%clk 0:02:28]}  e5 {[%clk 0:02:09]} 26. Kd3 {[%clk 0:02:25]}  Nb3 {[%clk 0:02:06]} 27. Rf1 {[%clk 0:02:23]}  Nd4 {[%clk 0:01:54]} 28. Bd1 {[%clk 0:02:22]}  Ra5 {[%clk 0:01:27]} 29. Bc2 {[%clk 0:02:06]}  Ne6 {[%clk 0:01:23]} 30. g3 {[%clk 0:02:04]}  Rb8 {[%clk 0:00:57]} 31. f4 {[%clk 0:01:53]}  b5 {[%clk 0:00:56]} 32. fxe5 {[%clk 0:01:51]}  dxe5 {[%clk 0:00:55]} 33. Rb1 {[%clk 0:01:44]}  Rd8+ {[%clk 0:00:49]} 34. Ke3 {[%clk 0:01:43]}  Nd4 {[%clk 0:00:20]} 35. Bd3 {[%clk 0:01:41]}  bxc4 {[%clk 0:00:17]} 36. Rxc4 {[%clk 0:01:42]}  Rd7 {[%clk 0:00:15]} 37. Rb4 {[%clk 0:01:35]}  Rc7 {[%clk 0:00:16]} 38. Rf1 {[%clk 0:01:33]}  h5 {[%clk 0:00:12]} 39. h4 {[%clk 0:01:33]}  Raa7 {[%clk 0:00:09]} 40. Rb6 {[%clk 0:01:28]}  Ra5 {[%clk 0:00:09]} 41. Rb8 {[%clk 0:01:26]}  Rac5 {[%clk 0:00:09]} 42. Rb4 {[%clk 0:01:23]}  Ra5 {[%clk 0:00:03]} 43. Rf2 {[%clk 0:01:18]}  Ra8 {[%clk 0:00:04]} 44. Bc4 {[%clk 0:01:17]}  Rb7 {[%clk 0:00:00]} 45. Rxb7 {[%clk 0:01:16]} 1-0


[Site "https://www.chess.com"]

[Event "Titled Tuesday Blitz March 14 Late 2023"]
[White "Sarkar, Justin"]
[Black "Di Berardino, Diego Rafael"]
[WhiteFideId "2010011"]
[BlackFideId "2105446"]
[WhiteElo "2189"]
[BlackElo "2432"]
[Result "0-1"]
[Round "02"]
[TimeControl "180+1"]
[Date "2023.03.14"]
[WhiteClock "0:00:40"]
[BlackClock "0:01:45"]

1. e4 {[%clk 0:02:52]}  c5 {[%clk 0:02:59]} 2. Nf3 {[%clk 0:02:51]}  d6 {[%clk 0:03:00]} 3. d4 {[%clk 0:02:51]}  cxd4 {[%clk 0:03:01]} 4. Nxd4 {[%clk 0:02:50]}  Nf6 {[%clk 0:03:02]} 5. Nc3 {[%clk 0:02:49]}  a6 {[%clk 0:03:02]} 6. a4 {[%clk 0:02:42]}  g6 {[%clk 0:02:59]} 7. Be2 {[%clk 0:02:35]}  Bg7 {[%clk 0:02:57]} 8. O-O {[%clk 0:02:35]}  O-O {[%clk 0:02:56]} 9. Be3 {[%clk 0:02:32]}  Nc6 {[%clk 0:02:55]} 10. Nb3 {[%clk 0:02:30]}  Be6 {[%clk 0:02:43]} 11. f4 {[%clk 0:02:15]}  Na5 {[%clk 0:02:34]} 12. Nd4 {[%clk 0:01:51]}  Bc4 {[%clk 0:02:28]} 13. b4 {[%clk 0:01:22]}  Bxe2 {[%clk 0:02:25]} 14. Qxe2 {[%clk 0:01:22]}  Rc8 {[%clk 0:02:19]} 15. bxa5 {[%clk 0:00:59]}  Rxc3 {[%clk 0:02:19]} 16. Bd2 {[%clk 0:00:59]}  Rc8 {[%clk 0:02:00]} 17. c4 {[%clk 0:00:52]}  Nd7 {[%clk 0:01:47]} 18. Bc3 {[%clk 0:00:40]}  Qc7 {[%clk 0:01:45]} 0-1


[Site "https://www.chess.com"]

[Event "Titled Tuesday Blitz March 14 Late 2023"]
[White "Senft, Sean"]
[Black "Michalski, Olaf"]
[WhiteFideId "2044960"]
[BlackFideId "1106740"]
[WhiteElo "1989"]
[BlackElo "2173"]
[Result "0-1"]
[Round "02"]
[TimeControl "180+1"]
[Date "2023.03.14"]
[WhiteClock "0:01:27"]
[BlackClock "0:00:05"]

1. e4 {[%clk 0:03:00]}  c5 {[%clk 0:02:57]} 2. Nc3 {[%clk 0:03:00]}  a6 {[%clk 0:02:57]} 3. f4 {[%clk 0:03:01]}  b5 {[%clk 0:02:57]} 4. Nf3 {[%clk 0:03:00]}  Bb7 {[%clk 0:02:57]} 5. d3 {[%clk 0:02:59]}  e6 {[%clk 0:02:54]} 6. g3 {[%clk 0:03:00]}  g6 {[%clk 0:02:51]} 7. Bg2 {[%clk 0:03:00]}  Bg7 {[%clk 0:02:52]} 8. O-O {[%clk 0:03:00]}  Ne7 {[%clk 0:02:52]} 9. Qe1 {[%clk 0:02:49]}  d6 {[%clk 0:02:37]} 10. Be3 {[%clk 0:02:42]}  Nbc6 {[%clk 0:02:37]} 11. Rd1 {[%clk 0:02:39]}  Nd4 {[%clk 0:02:34]} 12. Bxd4 {[%clk 0:02:32]}  cxd4 {[%clk 0:02:33]} 13. Ne2 {[%clk 0:02:33]}  e5 {[%clk 0:02:03]} 14. g4 {[%clk 0:02:32]}  h5 {[%clk 0:01:48]} 15. g5 {[%clk 0:02:28]}  Qc7 {[%clk 0:01:28]} 16. c3 {[%clk 0:02:22]}  dxc3 {[%clk 0:01:19]} 17. bxc3 {[%clk 0:02:22]}  O-O {[%clk 0:00:49]} 18. Nh4 {[%clk 0:02:22]}  exf4 {[%clk 0:00:45]} 19. Rxf4 {[%clk 0:02:15]}  d5 {[%clk 0:00:33]} 20. Nd4 {[%clk 0:01:39]}  Qxf4 {[%clk 0:00:20]} 21. Bf1 {[%clk 0:01:36]}  dxe4 {[%clk 0:00:16]} 22. Ng2 {[%clk 0:01:31]}  Qxg5 {[%clk 0:00:13]} 23. dxe4 {[%clk 0:01:32]}  Rad8 {[%clk 0:00:12]} 24. Nf3 {[%clk 0:01:32]}  Qc5+ {[%clk 0:00:10]} 25. Kh1 {[%clk 0:01:32]}  Rxd1 {[%clk 0:00:10]} 26. Qxd1 {[%clk 0:01:33]}  Bxe4 {[%clk 0:00:10]} 27. Qe2 {[%clk 0:01:31]}  Bxf3 {[%clk 0:00:09]} 28. Qxf3 {[%clk 0:01:32]}  Qxc3 {[%clk 0:00:09]} 29. Qe2 {[%clk 0:01:33]}  Nf5 {[%clk 0:00:09]} 30. a4 {[%clk 0:01:33]}  Rc8 {[%clk 0:00:09]} 31. axb5 {[%clk 0:01:34]}  axb5 {[%clk 0:00:09]} 32. Qxb5 {[%clk 0:01:34]}  Qc1 {[%clk 0:00:09]} 33. Qe2 {[%clk 0:01:31]}  h4 {[%clk 0:00:09]} 34. Kg1 {[%clk 0:01:29]}  Rc2 {[%clk 0:00:08]} 35. Qd3 {[%clk 0:01:28]}  Bd4+ {[%clk 0:00:08]} 36. Kh1 {[%clk 0:01:27]}  Rd2 {[%clk 0:00:07]} 37. Qa6 {[%clk 0:01:27]}  Ne3 {[%clk 0:00:06]} 38. Nxe3 {[%clk 0:01:26]}  Bxe3 {[%clk 0:00:06]} 39. Qc8+ {[%clk 0:01:27]}  Qxc8 {[%clk 0:00:04]} 40. Bg2 {[%clk 0:01:27]}  Qg4 {[%clk 0:00:04]} 41. Bf1 {[%clk 0:01:28]}  Qf3+ {[%clk 0:00:04]} 42. Bg2 {[%clk 0:01:27]}  Qxg2# {[%clk 0:00:05]} 0-1


[Site "https://www.chess.com"]

[Event "Titled Tuesday Blitz March 14 Late 2023"]
[White "Simonovic, Miroslav"]
[Black "Quinones Garcia, Santiago"]
[WhiteFideId "919152"]
[BlackFideId "4408497"]
[WhiteElo "2042"]
[BlackElo "2263"]
[Result "0-1"]
[Round "02"]
[TimeControl "180+1"]
[Date "2023.03.14"]
[WhiteClock "0:00:17"]
[BlackClock "0:00:41"]

1. d4 {[%clk 0:03:00]}  Nf6 {[%clk 0:02:59]} 2. Bg5 {[%clk 0:03:01]}  Ne4 {[%clk 0:02:59]} 3. Bf4 {[%clk 0:03:01]}  d5 {[%clk 0:03:00]} 4. e3 {[%clk 0:03:00]}  g6 {[%clk 0:02:54]} 5. Bd3 {[%clk 0:02:59]}  Nf6 {[%clk 0:02:53]} 6. h4 {[%clk 0:02:58]}  Bg7 {[%clk 0:02:52]} 7. Be5 {[%clk 0:02:57]}  Nc6 {[%clk 0:02:51]} 8. Nf3 {[%clk 0:02:57]}  Nxe5 {[%clk 0:02:49]} 9. dxe5 {[%clk 0:02:57]}  Ng4 {[%clk 0:02:45]} 10. h5 {[%clk 0:02:53]}  Nxe5 {[%clk 0:02:41]} 11. Nxe5 {[%clk 0:02:54]}  Bxe5 {[%clk 0:02:40]} 12. c3 {[%clk 0:02:54]}  Be6 {[%clk 0:02:36]} 13. Qc2 {[%clk 0:02:49]}  Qd7 {[%clk 0:02:25]} 14. Nd2 {[%clk 0:02:45]}  O-O-O {[%clk 0:02:23]} 15. Nf3 {[%clk 0:02:45]}  Bf6 {[%clk 0:02:23]} 16. O-O-O {[%clk 0:02:45]}  Bg4 {[%clk 0:02:17]} 17. hxg6 {[%clk 0:02:40]}  hxg6 {[%clk 0:02:17]} 18. Be2 {[%clk 0:02:32]}  c6 {[%clk 0:02:05]} 19. Qa4 {[%clk 0:02:31]}  Kb8 {[%clk 0:02:04]} 20. Qb3 {[%clk 0:02:16]}  Qc7 {[%clk 0:01:57]} 21. a4 {[%clk 0:02:11]}  e5 {[%clk 0:01:54]} 22. Rxh8 {[%clk 0:01:51]}  Rxh8 {[%clk 0:01:53]} 23. Re1 {[%clk 0:01:45]}  Be6 {[%clk 0:01:51]} 24. Qc2 {[%clk 0:01:39]}  Bf5 {[%clk 0:01:47]} 25. Qb3 {[%clk 0:01:39]}  g5 {[%clk 0:01:45]} 26. g3 {[%clk 0:01:34]}  g4 {[%clk 0:01:42]} 27. Nd2 {[%clk 0:01:33]}  Rh2 {[%clk 0:01:41]} 28. Rf1 {[%clk 0:01:33]}  Be6 {[%clk 0:01:34]} 29. Qd1 {[%clk 0:01:32]}  Qd7 {[%clk 0:01:34]} 30. Nb3 {[%clk 0:01:31]}  b6 {[%clk 0:01:32]} 31. a5 {[%clk 0:01:29]}  Bg5 {[%clk 0:01:32]} 32. axb6 {[%clk 0:01:28]}  axb6 {[%clk 0:01:33]} 33. Kb1 {[%clk 0:01:28]}  Bf5+ {[%clk 0:01:31]} 34. Bd3 {[%clk 0:01:24]}  Kb7 {[%clk 0:01:27]} 35. Qc2 {[%clk 0:01:18]}  e4 {[%clk 0:01:24]} 36. Be2 {[%clk 0:01:17]}  Be6 {[%clk 0:01:22]} 37. Nd4 {[%clk 0:01:15]}  Qd6 {[%clk 0:01:14]} 38. Nxe6 {[%clk 0:01:13]}  Qxe6 {[%clk 0:01:14]} 39. Qd1 {[%clk 0:01:13]}  f5 {[%clk 0:01:13]} 40. Qa4 {[%clk 0:01:10]}  b5 {[%clk 0:01:10]} 41. Qa5 {[%clk 0:01:09]}  Bxe3 {[%clk 0:01:08]} 42. Bxb5 {[%clk 0:01:03]}  Rxf2 {[%clk 0:00:57]} 43. Qa6+ {[%clk 0:00:59]}  Kc7 {[%clk 0:00:57]} 44. Rh1 {[%clk 0:00:45]}  Bh6 {[%clk 0:00:53]} 45. Qa7+ {[%clk 0:00:44]}  Kd6 {[%clk 0:00:53]} 46. Bxc6 {[%clk 0:00:34]}  Kxc6 {[%clk 0:00:45]} 47. Qa6+ {[%clk 0:00:35]}  Kd7 {[%clk 0:00:45]} 48. Qa7+ {[%clk 0:00:25]}  Kd6 {[%clk 0:00:43]} 49. Qxf2 {[%clk 0:00:25]}  e3 {[%clk 0:00:42]} 50. Qe2 {[%clk 0:00:18]}  Qe4+ {[%clk 0:00:42]} 51. Kc1 {[%clk 0:00:17]}  Qxh1+ {[%clk 0:00:43]} 52. Kc2 {[%clk 0:00:17]}  Qe4+ {[%clk 0:00:41]} 53. Kd1 {[%clk 0:00:17]}  Qb1# {[%clk 0:00:41]} 0-1


[Site "https://www.chess.com"]

[Event "Titled Tuesday Blitz March 14 Late 2023"]
[White "Skvortsov, Andrei"]
[Black "Wu, Sibo"]
[WhiteFideId "24108600"]
[BlackFideId "8606048"]
[WhiteElo "2259"]
[BlackElo "2429"]
[Result "1-0"]
[Round "02"]
[TimeControl "180+1"]
[Date "2023.03.14"]
[WhiteClock "0:00:28"]
[BlackClock "0:00:16"]

1. Nf3 {[%clk 0:03:00]}  d5 {[%clk 0:02:59]} 2. e3 {[%clk 0:03:01]}  Nf6 {[%clk 0:03:00]} 3. c4 {[%clk 0:03:01]}  c6 {[%clk 0:03:00]} 4. Nc3 {[%clk 0:03:00]}  a6 {[%clk 0:02:49]} 5. c5 {[%clk 0:02:58]}  e5 {[%clk 0:02:41]} 6. Nxe5 {[%clk 0:02:57]}  Bxc5 {[%clk 0:02:41]} 7. d4 {[%clk 0:02:58]}  Bd6 {[%clk 0:02:41]} 8. f4 {[%clk 0:02:58]}  O-O {[%clk 0:02:40]} 9. Bd3 {[%clk 0:02:57]}  c5 {[%clk 0:02:40]} 10. Ne2 {[%clk 0:02:55]}  Nc6 {[%clk 0:02:36]} 11. O-O {[%clk 0:02:51]}  Re8 {[%clk 0:02:20]} 12. Ng3 {[%clk 0:02:49]}  Qb6 {[%clk 0:02:02]} 13. Nxc6 {[%clk 0:02:37]}  bxc6 {[%clk 0:02:01]} 14. Be2 {[%clk 0:02:23]}  cxd4 {[%clk 0:01:55]} 15. exd4 {[%clk 0:02:22]}  Ne4 {[%clk 0:01:52]} 16. Bf3 {[%clk 0:02:09]}  Nxg3 {[%clk 0:01:38]} 17. hxg3 {[%clk 0:02:10]}  Bf5 {[%clk 0:01:38]} 18. g4 {[%clk 0:02:10]}  Be4 {[%clk 0:01:38]} 19. b3 {[%clk 0:02:07]}  Bxf3 {[%clk 0:01:36]} 20. gxf3 {[%clk 0:02:06]}  c5 {[%clk 0:01:24]} 21. Kg2 {[%clk 0:01:53]}  cxd4 {[%clk 0:01:19]} 22. Qd3 {[%clk 0:01:46]}  Qb5 {[%clk 0:01:08]} 23. Qxd4 {[%clk 0:01:30]}  Re2+ {[%clk 0:01:04]} 24. Kh3 {[%clk 0:01:09]}  Bc5 {[%clk 0:00:33]} 25. Qxd5 {[%clk 0:01:04]}  Rae8 {[%clk 0:00:32]} 26. Qc4 {[%clk 0:00:45]}  Qb6 {[%clk 0:00:25]} 27. f5 {[%clk 0:00:42]}  Qd6 {[%clk 0:00:21]} 28. Bf4 {[%clk 0:00:40]}  Qb6 {[%clk 0:00:18]} 29. Rac1 {[%clk 0:00:34]}  Be3 {[%clk 0:00:16]} 30. Qxe2 {[%clk 0:00:28]} 1-0


[Site "https://www.chess.com"]